[Event "27th CRO-chT 1A-Men 2018"]
[Site "Biograd"]
[Date "2018.09.12"]
[Round "5.17"]
[White "Loncar, Robert"]
[Black "Feletar, Darko"]
[Result "1-0"]
[ECO "A04"]
[WhiteElo "2409"]
[BlackElo "2364"]
[Annotator "ChessBase"]
[PlyCount "71"]
[EventDate "2018.09.08"]
[EventType "team-tourn"]
[EventCountry "CRO"]
[SourceTitle "playchess.com"]
[Source "ChessBase"]
[SourceQuality "1"]
[TimeControl "40/5400+30:1800+30"]

1. Nf3 {[%emt 0:09:30]} c5 {[%emt 0:01:30]} 2. g3 {[%emt 0:00:30]} g6 {[%emt 0:02:30]} 3. d4 {[%emt 0:02:30]} cxd4 {[%emt 0:00:30]} 4. Qxd4 {[%emt 0:00:30]} Nf6 {[%emt 0:00:30]} 5. Bg2 {[%emt 0:00:30]} Bg7 {[%emt 0:02:30]} 6. O-O {[%emt 0:01:30]} Nc6 {[%emt 0:04:30]} 7. Qh4 {[%emt 0:00:00]} h6 {[%emt 0:04:30]} 8. Rd1 {[%emt 0:08:00]} d6 {[%emt 0:03:30]} 9. Qa4 {[%emt 0:05:30]} Bd7 {[%emt 0:00:30]} 10. Qb3 {[%emt 0:03:30]} Rb8 {[%emt 0:19:30]} 11. c3 {[%emt 0:05:30]} Be6 {[%emt 0:04:30]} 12. Qa4 {[%emt 0:02:30]} b5 {[%emt 0:01:30]} 13. Qf4 {[%emt 0:00:30]} g5 {[%emt 0:04:30]} 14. Qd2 {[%emt 0:13:30]} Bd7 {[%emt 0:04:30]} 15. h4 {[%emt 0:01:30]} Qb6 {[%emt 0:06:30]} 16. hxg5 {[%emt 0:03:30]} Ng4 {[%emt 0:04:30]} 17. Qe1 {[%emt 0:00:30]} hxg5 {[%emt 0:05:30]} 18. Bxg5 {[%emt 0:01:30]} b4 {[%emt 0:00:30]} 19. Nbd2 {[%emt 0:06:30]} bxc3 {[%emt 0:01:30]} 20. bxc3 {[%emt 0:00:30]} Bxc3 {[%emt 0:01:30]} 21. Rac1 {[%emt 0:01:30]} Qa5 {[%emt 0:01:30]} 22. Qf1 {[%emt 0:06:30]} Nce5 {[%emt 0:06:08]} 23. Bh4 {[%emt 0:04:30]} Bxd2 {[%emt 0:10:01]} 24. Nxd2 {[%emt 0:00:30]} Ba4 {[%emt 0:02:07]} 25. Nb3 {[%emt 0:01:48]} Bxb3 {[%emt 0:01:19]} 26. axb3 {[%emt 0:00:12]} Ng6 {[%emt 0:00:37]} 27. Rd5 {[%emt 0:02:29]} Qb6 {[%emt 0:00:09]} 28. Bg5 {[%emt 0:00:30]} Qxb3 {[%emt 0:02:06]} 29. Qe1 {[%emt 0:05:54]} Qb6 {[%emt 0:00:56]} 30. Rdd1 {[%emt 0:01:47]} Rd8 {[%emt 0:01:24]} 31. Rb1 {[%emt 0:00:41]} Qc5 {[%emt 0:00:50]} 32. Rd5 {[%emt 0:00:05]} Qc2 {[%emt 0:00:55]} 33. Rb7 {[%emt 0:01:12]} Rh2 {[%emt 0:01:06]} 34. Bf3 {[%emt 0:01:01]} N6e5 {[%emt 0:02:11]} 35. Rxe7+ {[%emt 0:00:18]} Kf8 {[%emt 0:00:03]} 36. Rexe5 {[%emt 0:00:15]} 1-0

[Event "27th CRO-chT 1A-Men 2018"]
[Site "Biograd"]
[Date "2018.09.12"]
[Round "5.29"]
[White "Medak, Bojan"]
[Black "Dutina, Dario"]
[Result "0-1"]
[ECO "A29"]
[WhiteElo "2367"]
[BlackElo "2245"]
[Annotator "NA"]
[PlyCount "56"]
[EventDate "2018.09.08"]
[EventType "team-tourn"]
[EventCountry "CRO"]
[SourceTitle "playchess.com"]
[Source "ChessBase"]
[SourceQuality "1"]
[TimeControl "40/5400+30:1800+30"]

1. c4 {[%emt 0:00:30]} e5 {[%emt 0:00:30]} 2. Nc3 {[%emt 0:00:30]} Nf6 {[%emt 0:00:30]} 3. Nf3 {[%emt 0:01:30]} Nc6 {[%emt 0:00:30]} 4. g3 {[%emt 0:01:30]} Bb4 {[%emt 0:04:30]} 5. Bg2 {[%emt 0:01:30]} O-O {[%emt 0:01:30]} 6. O-O {[%emt 0:01:30]} Bxc3 {[%emt 0:05:30]} 7. bxc3 {[%emt 0:00:30]} d6 {[%emt 0:00:30]} 8. d3 {[%emt 0:00:30]} h6 {[%emt 0:00:00]} 9. e4 {[%emt 0:01:30]} Be6 {[%emt 0:09:00]} 10. Nh4 {[%emt 0:05:30]} Ne7 {[%emt 0:10:30]} 11. f4 {[%emt 0:10:30]} exf4 {[%emt 0:03:30]} 12. gxf4 {[%emt 0:04:30]} Ng6 {[%emt 0:06:30]} 13. Nf3 {[%emt 0:20:30]} Bg4 {[%emt 0:00:30]} 14. Qe1 {[%emt 0:02:30]} Nh5 {[%emt 0:20:30]} 15. f5 {[%emt 0:11:30]} Ngf4 {[%emt 0:01:30]} 16. Bxf4 {[%emt 0:00:30]} Nxf4 {[%emt 0:00:30]} 17. Qe3 {[%emt 0:00:30]} g5 {[%emt 0:12:30]} 18. fxg6 {[%emt 0:15:10]} fxg6 {[%emt 0:00:00]} 19. Rab1 {[%emt 0:01:41]} b6 {[%emt 0:03:33]} 20. Rb2 {[%emt 0:02:37]} Qf6 {[%emt 0:08:44]} 21. Rc2 {[%emt 0:07:22]} Rf7 {[%emt 0:02:06]} 22. e5 {[%emt 0:03:02]} Re8 {[%emt 0:02:29]} 23. d4 {[%emt 0:01:25]} dxe5 {[%emt 0:02:31]} 24. Rcf2 {[%emt 0:04:00]} Bxf3 {[%emt 0:01:00]} 25. Bxf3 {[%emt 0:00:21]} Nh3+ {[%emt 0:00:12]} 26. Kg2 {[%emt 0:00:15]} Nxf2 {[%emt 0:00:30]} 27. Bd5 {[%emt 0:00:18]} Ng4 {[%emt 0:00:55]} 28. Qe2 {[%emt 0:01:50]} Ne3+ {[%emt 0:00:08]} 0-1

[Event "27th CRO-chT 1A-Men 2018"]
[Site "Biograd"]
[Date "2018.09.12"]
[Round "5.30"]
[White "Bozinovic, Bogdan"]
[Black "Filipovic, Marko"]
[Result "0-1"]
[ECO "D93"]
[WhiteElo "2229"]
[BlackElo "2321"]
[Annotator "ChessBase"]
[PlyCount "90"]
[EventDate "2018.09.08"]
[EventType "team-tourn"]
[EventCountry "CRO"]
[SourceTitle "playchess.com"]
[Source "ChessBase"]
[SourceQuality "1"]
[TimeControl "40/5400+30:1800+30"]

1. d4 {[%emt 0:01:30]} d5 {[%emt 0:00:30]} 2. c4 {[%emt 0:00:30]} c6 {[%emt 0:00:30]} 3. Nf3 {[%emt 0:00:30]} Nf6 {[%emt 0:00:30]} 4. Nc3 {[%emt 0:00:30]} g6 {[%emt 0:00:30]} 5. Bf4 {[%emt 0:03:30]} Bg7 {[%emt 0:02:30]} 6. e3 {[%emt 0:00:30]} O-O {[%emt 0:00:30]} 7. h3 {[%emt 0:09:30]} Ne4 {[%emt 0:14:30]} 8. Qb3 {[%emt 0:06:30]} Nxc3 {[%emt 0:05:30]} 9. bxc3 {[%emt 0:00:30]} Qa5 {[%emt 0:06:30]} 10. Be2 {[%emt 0:02:30]} dxc4 {[%emt 0:05:30]} 11. Bxc4 {[%emt 0:00:30]} b5 {[%emt 0:08:30]} 12. Be2 {[%emt 0:01:30]} Be6 {[%emt 0:00:30]} 13. Qb2 {[%emt 0:11:30]} Nd7 {[%emt 0:04:30]} 14. a4 {[%emt 0:06:30]} bxa4 {[%emt 0:03:30]} 15. O-O {[%emt 0:02:30]} Nb6 {[%emt 0:09:30]} 16. Rfc1 {[%emt 0:04:30]} Rac8 {[%emt 0:08:30]} 17. Qa3 {[%emt 0:03:30]} c5 {[%emt 0:03:30]} 18. Rab1 {[%emt 0:15:30]} Bc4 {[%emt 0:12:09]} 19. Bd1 {[%emt 0:03:30]} Bd3 {[%emt 0:01:51]} 20. Ra1 {[%emt 0:02:30]} Nd5 {[%emt 0:02:25]} 21. Bxa4 {[%emt 0:02:30]} cxd4 {[%emt 0:01:54]} 22. cxd4 {[%emt 0:00:30]} Rxc1+ {[%emt 0:02:13]} 23. Qxc1 {[%emt 0:00:30]} Nxf4 {[%emt 0:00:54]} 24. exf4 {[%emt 0:00:30]} Qb6 {[%emt 0:00:51]} 25. Qc3 {[%emt 0:02:02]} Bf5 {[%emt 0:00:46]} 26. Ne5 {[%emt 0:00:42]} Rc8 {[%emt 0:00:57]} 27. Qb3 {[%emt 0:00:40]} Qxd4 {[%emt 0:01:09]} 28. Rd1 {[%emt 0:02:01]} Qxf4 {[%emt 0:00:43]} 29. Nxf7 {[%emt 0:05:54]} e6 {[%emt 0:01:15]} 30. Nd6 {[%emt 0:02:31]} Rc1 {[%emt 0:01:29]} 31. Nxf5 {[%emt 0:02:13]} Rxd1+ {[%emt 0:00:26]} 32. Qxd1 {[%emt 0:00:08]} Qxf5 {[%emt 0:00:02]} 33. Qd8+ {[%emt 0:01:24]} Bf8 {[%emt 0:00:15]} 34. Bd7 {[%emt 0:00:55]} Qe5 {[%emt 0:01:26]} 35. Qe8 {[%emt 0:00:47]} Qe1+ {[%emt 0:00:15]} 36. Kh2 {[%emt 0:00:21]} Qxf2 {[%emt 0:00:22]} 37. Bxe6+ {[%emt 0:01:02]} Kg7 {[%emt 0:00:25]} 38. Qd7+ {[%emt 0:00:26]} Kh8 {[%emt 0:00:13]} 39. Bd5 {[%emt 0:01:19]} Bc5 {[%emt 0:01:16]} 40. Qe6 {[%emt 0:00:00]} Qf4+ {[%emt 0:00:00]} 41. Kh1 {[%emt 0:05:05]} Kg7 {[%emt 0:08:44]} 42. Qd7+ {[%emt 0:10:30]} Kh6 {[%emt 0:01:30]} 43. Qe6 {[%emt 0:03:59]} Qc1+ {[%emt 0:04:43]} 44. Kh2 {[%emt 0:00:09]} Bf2 {[%emt 0:00:17]} 45. h4 {[%emt 0:01:50]} Qf4+ {[%emt 0:00:39]} 0-1

[Event "27th CRO-chT 1A-Men 2018"]
[Site "Biograd"]
[Date "2018.09.15"]
[Round "8.10"]
[White "Bukal, Vladimir Jr"]
[Black "Mrkonjic, Nenad"]
[Result "0-1"]
[ECO "D02"]
[WhiteElo "2380"]
[BlackElo "2352"]
[Annotator "ChessBase"]
[PlyCount "122"]
[EventDate "2018.09.08"]
[EventType "team-tourn"]
[EventCountry "CRO"]
[SourceTitle "playchess.com"]
[Source "ChessBase"]
[SourceQuality "1"]
[TimeControl "40/5400+30:1800+30"]

1. d4 {[%emt 0:00:30]} Nf6 {[%emt 0:02:30]} 2. Nf3 {[%emt 0:00:00]} d5 {[%emt 0:01:30]} 3. Bf4 {[%emt 0:00:00]} c6 {[%emt 0:05:30]} 4. e3 {[%emt 0:02:30]} Bf5 {[%emt 0:00:30]} 5. Ne5 {[%emt 0:04:30]} h6 {[%emt 0:00:30]} 6. Nd2 {[%emt 0:01:30]} Nbd7 {[%emt 0:01:30]} 7. g4 {[%emt 0:03:30]} Bh7 {[%emt 0:01:30]} 8. h4 {[%emt 0:00:30]} e6 {[%emt 0:01:30]} 9. Nd3 {[%emt 0:19:30]} c5 {[%emt 0:02:30]} 10. g5 {[%emt 0:07:30]} Bxd3 {[%emt 0:04:30]} 11. Bxd3 {[%emt 0:02:30]} hxg5 {[%emt 0:02:30]} 12. Bxg5 {[%emt 0:00:30]} cxd4 {[%emt 0:01:30]} 13. exd4 {[%emt 0:00:30]} Qb6 {[%emt 0:00:30]} 14. Nb3 {[%emt 0:01:30]} Bd6 {[%emt 0:04:30]} 15. Qf3 {[%emt 0:04:30]} Nh5 {[%emt 0:07:30]} 16. O-O-O {[%emt 0:06:30]} Ndf6 {[%emt 0:00:30]} 17. Kb1 {[%emt 0:03:30]} O-O-O {[%emt 0:14:30]} 18. Bd2 {[%emt 0:04:30]} Bc7 {[%emt 0:01:30]} 19. Rc1 {[%emt 0:02:30]} Kb8 {[%emt 0:00:30]} 20. c4 {[%emt 0:00:00]} Qc6 {[%emt 0:04:30]} 21. Nc5 {[%emt 0:15:45]} Bb6 {[%emt 0:06:30] 5} 22. Qe3 {[%emt 0:05:25]} dxc4 {[%emt 0:08:30] 2} 23. Bxc4 {[%emt 0:00:23]} Ng4 {[%emt 0:03:30] ]} 24. Qe2 {[%emt 0:04:40]} Rxd4 {[%emt 0:03:30] 7} 25. Nb3 {[%emt 0:00:54]} Re4 {[%emt 0:00:30] 3} 26. Qf1 {[%emt 0:00:13]} Nxf2 {[%emt 0:00:49]} 27. Rg1 {[%emt 0:03:13]} Qd6 {[%emt 0:01:57] [%clk 0:17.04]} 28. Rg5 {[%emt 0:03:38]} Ng3 {[%emt 0:01:40]} 29. Qg2 {[%emt 0:00:11]} Nf5 {[%emt 0:00:25]} 30. Qf3 {[%emt 0:02:57]} Rhxh4 {[%emt 0:01:18]} 31. Bf1 {[%emt 0:00:32]} g6 {[%emt 0:05:29]} 32. Qc3 {[%emt 0:00:30]} Qd8 {[%emt 0:00:02]} 33. Nc5 {[%emt 0:01:02]} Rd4 {[%emt 0:05:40]} 34. Be1 {[%emt 0:00:01]} Ne4 {[%emt 0:00:43]} 35. Nxe4 {[%emt 0:00:39]} Rhxe4 {[%emt 0:00:03]} 36. Rg3 {[%emt 0:00:51]} a6 {[%emt 0:01:19]} 37. Rh3 {[%emt 0:00:16]} Ka7 {[%emt 0:00:18]} 38. Bf2 {[%emt 0:00:32]} Rd6 {[%emt 0:00:45]} 39. Rh8 {[%emt 0:00:02]} Qd7 {[%emt 0:00:13]} 40. Bxb6+ {[%emt 0:00:00]} Rxb6 {[%emt 0:00:00]} 41. Rc8 {[%emt 0:05:16]} Qd4 {[%emt 0:04:19]} 42. Qc2 {[%emt 0:01:30]} Ne3 {[%emt 0:01:30]} 43. Qh2 {[%emt 0:00:30]} Qe5 {[%emt 0:00:00]} 44. Qxe5 {[%emt 0:01:30]} Rxe5 {[%emt 0:00:00]} 45. Bd3 {[%emt 0:00:30]} Rd5 {[%emt 0:00:30]} 46. Be4 {[%emt 0:00:30]} Rd7 {[%emt 0:00:30]} 47. Bf3 {[%emt 0:00:30]} Rbd6 {[%emt 0:01:30]} 48. a4 {[%emt 0:01:30]} Nd5 {[%emt 0:00:00]} 49. a5 {[%emt 0:00:00]} Rd8 {[%emt 0:00:00]} 50. R8c5 {[%emt 0:01:00]} R6d7 {[%emt 0:00:30]} 51. Rf1 {[%emt 0:02:30]} Rc7 {[%emt 0:04:30]} 52. Rxc7 {[%emt 0:00:30]} Nxc7 {[%emt 0:00:00]} 53. Kc2 {[%emt 0:00:30]} Kb8 {[%emt 0:00:00]} 54. Rh1 {[%emt 0:00:30]} Nb5 {[%emt 0:00:30]} 55. Bg2 {[%emt 0:00:30]} Kc7 {[%emt 0:00:30]} 56. Rh7 {[%emt 0:00:00]} Rd7 {[%emt 0:00:30]} 57. b4 {[%emt 0:00:00]} Kd6 {[%emt 0:00:30]} 58. Kd3 {[%emt 0:00:30]} Ke5+ {[%emt 0:00:30]} 59. Ke3 {[%emt 0:00:30]} Nd6 {[%emt 0:00:00]} 60. Rh8 {[%emt 0:00:00]} Rc7 {[%emt 0:00:00]} 61. Rb8 {[%emt 0:00:00]} g5 {[%emt 0:00:30]} 0-1

[Event "27th CRO-chT 1A-Men 2018"]
[Site "Biograd"]
[Date "2018.09.15"]
[Round "8.11"]
[White "Feletar, Darko"]
[Black "Dutina, Dario"]
[Result "1-0"]
[ECO "C10"]
[WhiteElo "2364"]
[BlackElo "2245"]
[Annotator "ChessBase"]
[PlyCount "115"]
[EventDate "2018.09.08"]
[EventType "team-tourn"]
[EventCountry "CRO"]
[SourceTitle "playchess.com"]
[Source "ChessBase"]
[SourceQuality "1"]
[TimeControl "40/5400+30:1800+30"]

1. d4 {[%emt 0:02:30] 4} e6 {[%emt 0:00:30] 4} 2. e4 {[%emt 0:05:30] 4} d5 {[%emt 0:00:30]} 3. Nd2 {[%emt 0:00:30]} dxe4 {[%emt 0:00:30]} 4. Nxe4 {[%emt 0:00:30]} Nd7 {[%emt 0:00:30]} 5. Nf3 {[%emt 0:00:30]} Ngf6 {[%emt 0:00:00]} 6. Nxf6+ {[%emt 0:00:30]} Nxf6 {[%emt 0:00:00]} 7. c3 {[%emt 0:00:30]} Bd6 {[%emt 0:02:30]} 8. Bd3 {[%emt 0:00:30]} b6 {[%emt 0:01:30]} 9. Ne5 {[%emt 0:18:30]} Bb7 {[%emt 0:06:30]} 10. Bb5+ {[%emt 0:04:30]} Kf8 {[%emt 0:01:30]} 11. O-O {[%emt 0:04:30]} c5 {[%emt 0:27:30]} 12. Bf4 {[%emt 0:05:30]} Qc7 {[%emt 0:01:30]} 13. Qe2 {[%emt 0:01:30]} a6 {[%emt 0:03:30]} 14. Ba4 {[%emt 0:02:30]} b5 {[%emt 0:00:30]} 15. dxc5 {[%emt 0:00:30]} Qxc5 {[%emt 0:00:00]} 16. Bb3 {[%emt 0:00:30]} Bxe5 {[%emt 0:05:00]} 17. Bxe5 {[%emt 0:03:30]} Ke7 {[%emt 0:16:30]} 18. Bd4 {[%emt 0:15:30]} Qc6 {[%emt 0:04:30]} 19. f3 {[%emt 0:00:30]} Rhe8 {[%emt 0:03:30]} 20. Qe5 {[%emt 0:04:30]} Rac8 {[%emt 0:04:08]} 21. Rae1 {[%emt 0:03:30] 2} Kf8 {[%emt 0:05:07]} 22. Qg5 {[%emt 0:05:57]} h6 {[%emt 0:00:42]} 23. Qg3 {[%emt 0:01:33]} Qc7 {[%emt 0:01:12]} 24. f4 {[%emt 0:03:04]} Re7 {[%emt 0:09:09] [%clk 0:05.12]} 25. Re5 {[%emt 0:07:17]} Bd5 {[%emt 0:01:49]} 26. Rfe1 {[%emt 0:02:23]} Bxb3 {[%emt 0:01:53]} 27. axb3 {[%emt 0:00:05]} Qd6 {[%emt 0:00:17]} 28. f5 {[%emt 0:02:21]} Rc6 {[%emt 0:00:10]} 29. b4 {[%emt 0:01:13]} Nd7 {[%emt 0:00:24]} 30. fxe6 {[%emt 0:00:36]} fxe6 {[%emt 0:01:12]} 31. R5e3 {[%emt 0:02:35]} Qxg3 {[%emt 0:00:01]} 32. Rxg3 {[%emt 0:00:00]} e5 {[%emt 0:00:23]} 33. Rge3 {[%emt 0:00:00]} Rce6 {[%emt 0:00:13]} 34. Bc5 {[%emt 0:00:27]} Nxc5 {[%emt 0:00:02]} 35. bxc5 {[%emt 0:00:09]} e4 {[%emt 0:01:24]} 36. b4 {[%emt 0:00:22]} Ke8 {[%emt 0:00:13]} 37. Rd1 {[%emt 0:00:21]} g5 {[%emt 0:00:38]} 38. Rd4 {[%emt 0:00:16]} Kf7 {[%emt 0:00:04]} 39. Kf2 {[%emt 0:00:43]} h5 {[%emt 0:00:13]} 40. Ke2 {[%emt 0:00:00]} Kf6 {[%emt 0:00:00]} 41. c4 {[%emt 0:02:38]} bxc4 {[%emt 0:05:46]} 42. Rxc4 {[%emt 0:00:30]} Kf5 {[%emt 0:00:30]} 43. Ra3 {[%emt 0:02:30]} Rc7 {[%emt 0:03:30]} 44. Ke3 {[%emt 0:00:30]} h4 {[%emt 0:01:30]} 45. h3 {[%emt 0:01:30]} Rcc6 {[%emt 0:01:30]} 46. Ra2 {[%emt 0:00:30]} Re5 {[%emt 0:01:30]} 47. Rd4 {[%emt 0:03:30]} Rce6 {[%emt 0:04:25]} 48. Rc4 {[%emt 0:02:30]} Rc6 {[%emt 0:00:10]} 49. Ra1 {[%emt 0:00:30]} Ree6 {[%emt 0:07:59]} 50. Rd4 {[%emt 0:04:30]} Rc8 {[%emt 0:03:03]} 51. Rf1+ {[%emt 0:01:22]} Kg6 {[%emt 0:00:02]} 52. Rxe4 {[%emt 0:00:30]} Rxe4+ {[%emt 0:02:18]} 53. Kxe4 {[%emt 0:00:09]} a5 {[%emt 0:00:19]} 54. bxa5 {[%emt 0:03:38]} Rxc5 {[%emt 0:00:06]} 55. Ra1 {[%emt 0:00:08]} Rc8 {[%emt 0:03:24]} 56. a6 {[%emt 0:00:07]} Re8+ {[%emt 0:01:06]} 57. Kd5 {[%emt 0:00:14]} Kf5 {[%emt 0:00:46]} 58. a7 {[%emt 0:01:07]} 1-0

[Event "27th CRO-chT 1A-Men 2018"]
[Site "Biograd"]
[Date "2018.09.15"]
[Round "8.12"]
[White "Bozinovic, Bogdan"]
[Black "Jukic, Branimir"]
[Result "0-1"]
[ECO "D85"]
[WhiteElo "2229"]
[BlackElo "2377"]
[Annotator "NA"]
[PlyCount "66"]
[EventDate "2018.09.08"]
[EventType "team-tourn"]
[EventCountry "CRO"]
[SourceTitle "playchess.com"]
[Source "ChessBase"]
[SourceQuality "1"]
[TimeControl "40/5400+30:1800+30"]

1. d4 {[%emt 0:00:30] 1} Nf6 {[%emt 0:02:30] 1} 2. c4 {[%emt 0:01:30] 1} g6 {[%emt 0:00:00]} 3. Nc3 {[%emt 0:00:00]} d5 {[%emt 0:00:00]} 4. Nf3 {[%emt 0:03:00]} Bg7 {[%emt 0:00:00]} 5. cxd5 {[%emt 0:00:30]} Nxd5 {[%emt 0:00:00]} 6. e4 {[%emt 0:00:00]} Nxc3 {[%emt 0:00:30]} 7. bxc3 {[%emt 0:00:00]} c5 {[%emt 0:00:00]} 8. Rb1 {[%emt 0:00:30]} O-O {[%emt 0:00:00]} 9. Be2 {[%emt 0:00:30]} cxd4 {[%emt 0:00:30]} 10. cxd4 {[%emt 0:00:30]} Qa5+ {[%emt 0:00:30]} 11. Bd2 {[%emt 0:00:30]} Qxa2 {[%emt 0:00:00]} 12. O-O {[%emt 0:00:30]} a5 {[%emt 0:00:00]} 13. Bg5 {[%emt 0:05:30]} Qe6 {[%emt 0:00:30] D85: Exchange Grünfeld: Unusual White 7th moves and lines with 7 Nf3} (13... a4 14. Bxe7 Re8 15. Bd6 Rxe4 16. Rc1 Nc6 17. Bc4 Qb2 18. Rb1 Qc3 19. Bxf7+ Kxf7 20. Ng5+ Kg8 21. Nxe4 Qxd4 {1-0 (48) Navara,D (2616)-Zezulkin,J (2558) Ustron 2004}) 14. Qc2 {[%emt 0:01:30]} Na6 {[%emt 0:02:30]} 15. Bc4 {[%emt 0:16:30]} Qd6 {[%emt 0:01:30]} 16. h3 $146 {[%emt 0:13:30]} ({Predecessor:} 16. Qb3 Nb4 17. e5 Qd8 18. d5 h6 19. Bh4 g5 20. Bg3 Bf5 21. Rbc1 {1-0 (38) Karner,C (2155)-Henni,M (2375) Zagan 1997}) 16... Nb4 {[%emt 0:03:30]} 17. Qd2 {[%emt 0:05:30]} Qc6 {[%emt 0:02:30]} 18. Qe2 {[%emt 0:01:30]} Qd6 {[%emt 0:12:30]} 19. Rfd1 {[%emt 0:01:30]} b5 {[%emt 0:04:30]} 20. Bxb5 {[%emt 0:02:30]} Bb7 {[%emt 0:00:30]} 21. d5 {[%emt 0:02:30]} Rfc8 $2 {[%emt 0:04:30]} ({Günstiger ist} 21... h6 $1 $14 22. Bc1 Rfc8) 22. e5 {[%emt 0:04:30]} Qb6 $18 {[%emt 0:06:30]} 23. Ba4 {[%emt 0:14:30]} Ba6 {[%emt 0:08:30]} 24. Qe4 {[%emt 0:02:30]} Rc4 {[%emt 0:06:30]} 25. Rd4 {[%emt 0:00:30]} Rxd4 {[%emt 0:00:30]} 26. Nxd4 {[%emt 0:00:30]} Rb8 {[%emt 0:09:30]} 27. Rd1 {[%emt 0:11:13]} Nd3 {[%emt 0:12:30] 1} 28. Be3 {[%emt 0:03:30]} Qb4 {[%emt 0:04:18]} 29. Bc2 {[%emt 0:00:35] [%clk 0:08.13]} Nc5 {[%emt 0:05:43]} 30. Qf4 {[%emt 0:00:29]} Qc4 {[%emt 0:00:07]} 31. Nc6 {[%emt 0:04:55]} Qxc2 {[%emt 0:00:58]} 32. Nxb8 {[%emt 0:02:30]} Qxd1+ {[%emt 0:00:11]} 33. Kh2 {[%emt 0:00:06]} Qxd5 {[%emt 0:00:25]} 0-1

[Event "27th CRO-chT 1A-Men 2018"]
[Site "Biograd"]
[Date "2018.09.15"]
[Round "8.29"]
[White "Brnas, Augustin"]
[Black "Loncar, Robert"]
[Result "0-1"]
[ECO "C70"]
[WhiteElo "2190"]
[BlackElo "2409"]
[Annotator "NA"]
[PlyCount "57"]
[EventDate "2018.09.08"]
[EventType "team-tourn"]
[EventCountry "CRO"]
[SourceTitle "playchess.com"]
[Source "ChessBase"]
[SourceQuality "1"]
[TimeControl "40/5400+30:1800+30"]

1. e4 {[%emt 0:00:30]} e5 {[%emt 0:10:30]} 2. Nf3 {[%emt 0:00:30]} Nc6 {[%emt 0:00:00]} 3. Bb5 {[%emt 0:00:00]} a6 {[%emt 0:00:00]} 4. Ba4 {[%emt 0:01:00]} b5 {[%emt 0:00:00]} 5. Bb3 {[%emt 0:00:00]} g6 {[%emt 0:00:00]} 6. d4 {[%emt 0:17:00]} exd4 {[%emt 0:05:30]} 7. Nxd4 {[%emt 0:02:30]} Na5 {[%emt 0:01:30]} 8. a4 {[%emt 0:50:30] LiveBook: 5 Games} Nxb3 {[%emt 0:12:30]} 9. Nxb3 {[%emt 0:00:30]} bxa4 {[%emt 0:14:30]} 10. Rxa4 $14 {[%emt 0:02:30]} Bg7 {[%emt 0:01:30]} 11. Nc3 {[%emt 0:02:47]} d6 {[%emt 0:09:30]} 12. Nd5 {[%emt 0:03:48]} Bd7 {[%emt 0:03:30]} 13. Rc4 {[%emt 0:00:15]} Rc8 {[%emt 0:00:30]} 14. Na5 {[%emt 0:00:05]} Bb5 {[%emt 0:00:30]} 15. Rb4 {[%emt 0:10:58]} c5 {[%emt 0:06:30]} 16. Nb7 {[%emt 0:00:13]} Qd7 {[%emt 0:00:30]} 17. Nb6 {[%emt 0:01:49]} Qxb7 {[%emt 0:00:30]} 18. Nxc8 {[%emt 0:00:23]} Qxc8 {[%emt 0:00:00]} 19. Rb3 {[%emt 0:00:06]} Qc7 {[%emt 0:04:00]} 20. Bf4 {[%emt 0:00:41]} Be5 {[%emt 0:00:30]} 21. Bxe5 {[%emt 0:01:45]} dxe5 {[%emt 0:00:00]} 22. Rc3 {[%emt 0:00:19]} Nf6 {[%emt 0:02:00]} 23. Qf3 {[%emt 0:01:08]} Qc6 {[%emt 0:00:30]} 24. Re3 {[%emt 0:00:48]} O-O {[%emt 0:00:30]} 25. Kd2 {[%emt 0:00:14]} Qe6 {[%emt 0:03:30]} 26. h3 {[%emt 0:01:49]} Bc6 {[%emt 0:00:30]} 27. Qe2 {[%emt 0:00:17]} Qa2 {[%emt 0:00:30]} 28. b3 {[%emt 0:00:47]} Qb2 {[%emt 0:01:30]} 29. Rd1 {[%emt 0:01:18]} 0-1

[Event "27th CRO-chT 1A-Men 2018"]
[Site "Biograd"]
[Date "2018.09.16"]
[Round "9.16"]
[White "Zovko, Mario"]
[Black "Biti, Ozren"]
[Result "1/2-1/2"]
[ECO "C62"]
[WhiteElo "2328"]
[BlackElo "2366"]
[Annotator "NA"]
[PlyCount "20"]
[EventDate "2018.09.08"]
[EventType "team-tourn"]
[EventCountry "CRO"]
[SourceTitle "playchess.com"]
[Source "ChessBase"]
[SourceQuality "1"]
[TimeControl "40/5400+30:1800+30"]

1. e4 {[%emt 0:00:30]} e5 {[%emt 0:00:30]} 2. Nf3 {[%emt 0:00:00]} Nf6 {[%emt 0:00:00]} 3. Nc3 {[%emt 0:00:00]} Nc6 {[%emt 0:00:00]} 4. d4 {[%emt 0:00:00]} exd4 {[%emt 0:00:00]} 5. Nxd4 {[%emt 0:00:00]} d6 {[%emt 0:00:00]} 6. Bb5 {[%emt 0:00:30]} Bd7 {[%emt 0:00:30]} 7. Bxc6 {[%emt 0:00:00]} bxc6 {[%emt 0:00:30]} 8. O-O {[%emt 0:00:00]} g6 {[%emt 0:00:00]} 9. Bg5 {[%emt 0:00:00]} Bg7 {[%emt 0:00:00]} 10. Qf3 {[%emt 0:00:00]} h6 {[%emt 0:00:30]} 1/2-1/2

[Event "27th CRO-chT 1A-Men 2018"]
[Site "Biograd"]
[Date "2018.09.16"]
[Round "9.17"]
[White "Medak, Bojan"]
[Black "Cosic, Marin"]
[Result "1/2-1/2"]
[ECO "D94"]
[WhiteElo "2367"]
[BlackElo "2227"]
[Annotator "NA"]
[PlyCount "21"]
[EventDate "2018.09.08"]
[EventType "team-tourn"]
[EventCountry "CRO"]
[SourceTitle "playchess.com"]
[Source "ChessBase"]
[SourceQuality "1"]
[TimeControl "40/5400+30:1800+30"]

1. d4 {[%emt 0:00:30]} d5 {[%emt 0:00:30]} 2. c4 {[%emt 0:00:00]} c6 {[%emt 0:00:00]} 3. Nf3 {[%emt 0:00:00]} Nf6 {[%emt 0:00:00]} 4. Nc3 {[%emt 0:00:00]} g6 {[%emt 0:00:30]} 5. e3 {[%emt 0:00:00]} Bg7 {[%emt 0:00:00]} 6. Be2 {[%emt 0:00:30]} O-O {[%emt 0:00:00]} 7. O-O {[%emt 0:00:00]} Bg4 {[%emt 0:00:30]} 8. cxd5 {[%emt 0:00:00]} cxd5 {[%emt 0:00:00]} 9. h3 {[%emt 0:00:00]} Bxf3 {[%emt 0:00:00]} 10. Bxf3 {[%emt 0:00:00]} e6 {[%emt 0:00:30]} 11. b3 {[%emt 0:00:30]} 1/2-1/2